fUSD/lending_fUSD_20240212
["ID","MTS","AMOUNT","RATE_DAILY","PERIOD"]
[313843102,1707749467902,-587.81,0.00025613,2]
[313843103,1707749467912,-500.0,0.00025613,2]
[313843104,1707749467923,-500.0,0.00025657,2]
[313843105,1707749467933,-250.50388429,0.00025657,2]
[313843106,1707749467943,-500.0,0.00025657,2]
[313843107,1707749467954,-500.0,0.00025657,2]
[313843108,1707749467964,-7766.59,0.00025657,2]
[313843109,1707749467974,-3859.6,0.00025657,2]
[313843110,1707749467984,-3196.37,0.00025657,2]
[313843111,1707749467995,-555.97,0.00025657,2]
[313843112,1707749468006,-500.0,0.00025657,2]
[313843113,1707749468016,-500.0,0.00025657,2]
[313843114,1707749468026,-182.2204872,0.00025657,2]
[313843115,1707749468037,-2487.26,0.00025657,2]
[313843116,1707749468046,-710.62,0.00025657,2]
[313843117,1707749468057,-1220.17,0.00025657,2]
[313843118,1707749468067,-500.0,0.00025657,2]
[313843119,1707749468077,-500.0,0.00025657,2]
[313843120,1707749468087,-698.32,0.00025657,2]
[313843121,1707749468097,-855.42,0.00025657,2]
[313843122,1707749468108,-695.43,0.00025657,2]
[313843123,1707749468118,-1944.8,0.00025657,2]
[313843124,1707749468129,-1365.41,0.00025657,2]
[313843125,1707749468139,-5273.64,0.00025657,2]
[313843126,1707749468149,-1034.4,0.00025657,2]
[313843127,1707749468159,-2858.6,0.00025657,2]
[313843128,1707749468170,-1468.93,0.00025657,2]
[313843129,1707749468180,-881.17,0.00025657,2]
[313843130,1707749468190,-500.0,0.00025657,2]
[313843131,1707749468201,-1639.87,0.00025657,2]
[313843132,1707749468210,-500.0,0.00025657,2]
[313843133,1707749468220,-1006.08,0.00025657,2]
[313843134,1707749468230,-659.03,0.00025657,2]
[313843135,1707749468241,-731.5,0.00025657,2]
[313843136,1707749468251,-875.47,0.00025657,2]
[313843137,1707749468261,-2026.22,0.00025657,2]
[313843138,1707749468323,-2147.74326787,0.00025657,2]
[313843139,1707749468610,-353.60673213,0.00025657,2]
[313843140,1707749468619,-500.0,0.00025657,2]
[313843141,1707749468630,-500.0,0.00025657,2]
[313843142,1707749468640,-3714.48,0.00025657,2]
[313843143,1707749468653,-1998.1,0.00025657,2]
[313843144,1707749468663,-500.0,0.00025657,2]
[313843145,1707749468673,-1114.23,0.00025657,2]
[313843146,1707749468682,-500.0,0.00025657,2]
[313843147,1707749468692,-500.0,0.00025657,2]
[313843148,1707749468701,-500.0,0.00025657,2]
[313843149,1707749468711,-500.0,0.00025658,2]
[313843150,1707749468721,-552.76730073,0.00025658,2]
[313843151,1707749468736,-518.16269927,0.00025658,2]
[313843152,1707749468747,-1391.19,0.00025658,2]
[313843153,1707749468757,-1079.7,0.00025658,2]
[313843154,1707749468768,-500.0,0.00025658,2]
[313843155,1707749468780,-1574.12,0.00025658,2]
[313843156,1707749468790,-980.03,0.00025658,2]
[313843157,1707749468802,-2683.79,0.00025658,2]
[313843158,1707749468812,-500.0,0.00025658,2]
[313843159,1707749468824,-639.17,0.00025658,2]
[313843160,1707749468835,-659.69,0.00025658,2]
[313843161,1707749468845,-612.09,0.00025658,2]
[313843162,1707749468855,-500.0,0.00025658,2]
[313843163,1707749468865,-1761.81,0.00025658,2]
[313843164,1707749468874,-940.52,0.00025658,2]
[313843165,1707749468884,-564.5,0.00025658,2]
[313843166,1707749468895,-500.0,0.00025658,2]
[313843167,1707749468905,-500.0,0.00025658,2]
[313843168,1707749468916,-500.0,0.00025658,2]
[313843169,1707749468926,-1622.0,0.00025658,2]
[313843170,1707749468936,-500.0,0.00025658,2]
[313843171,1707749468946,-3437.62,0.00025658,2]
[313843172,1707749468957,-617.57,0.00025658,2]
[313843173,1707749468968,-500.0,0.00025658,2]
[313843174,1707749468978,-761.77,0.00025658,2]
[313843175,1707749468989,-958.99,0.00025658,2]
[313843176,1707749469001,-535.46,0.00025658,2]
[313843177,1707749469012,-500.0,0.00025658,2]
[313843178,1707749469023,-500.0,0.00025658,2]
[313843179,1707749469036,-500.0,0.00025658,2]
[313843180,1707749469048,-500.0,0.00025658,2]
[313843181,1707749469062,-500.0,0.00025658,2]
[313843182,1707749469073,-867.34,0.00025658,2]
[313843183,1707749469084,-682.52,0.00025658,2]
[313843184,1707749469095,-500.0,0.00025658,2]
[313843185,1707749469105,-8830.94,0.00025658,2]
[313843186,1707749469116,-838.54,0.00025658,2]
[313843187,1707749469126,-500.0,0.00025658,2]
[313843188,1707749469137,-1383.03,0.00025658,2]
[313843189,1707749469147,-500.0,0.00025658,2]
[313843190,1707749469159,-769.24,0.00025658,2]
[313843191,1707749469169,-500.0,0.00025658,2]
[313843192,1707749469179,-1563.89,0.00025658,2]
[313843193,1707749469190,-3711.11,0.00025658,2]
[313843194,1707749469201,-967.49,0.00025658,2]
[313843195,1707749469211,-500.0,0.00025658,2]
[313843196,1707749469222,-154.11,0.00025721,2]
[313843197,1707749469231,-500.0,0.0002576,2]
[313843198,1707749469241,-500.0,0.0002576,2]
[313843199,1707749469251,-500.0,0.0002576,2]
[313843200,1707749469262,-1328.87,0.0002576,2]
[313843201,1707749469273,-236.48751715,0.0002576,2]
[313843202,1707749469285,-462.28957939,0.0002576,2]
[313843203,1707749469294,-500.0,0.0002576,2]
[313843204,1707749469304,-537.67,0.0002576,2]
[313843205,1707749469314,-500.0,0.0002576,2]
[313843206,1707749469323,-517.59,0.0002576,2]
[313843207,1707749469333,-500.0,0.0002576,2]
[313843208,1707749469343,-500.0,0.0002576,2]
[313843209,1707749469353,-500.0,0.0002576,2]
[313843210,1707749469364,-763.45,0.0002576,2]
[313843211,1707749469374,-1106.17,0.00025839,2]
[313843212,1707749469383,-500.0,0.00025839,2]
[313843213,1707749469393,-5433.87,0.00025839,2]
[313843214,1707749469403,-686.02,0.00025839,2]
[313843215,1707749469413,-5002.24,0.00025839,2]
[313843216,1707749469423,-1282.89,0.00025839,2]
[313843217,1707749469433,-4545.74,0.00025839,2]
[313843218,1707749469443,-150.0,0.00025861,2]
[313843219,1707749469453,-303.701,0.00025861,2]
[313843220,1707749469463,-639.53,0.00025887,2]
[313843221,1707749469473,-920.58,0.00025887,2]
[313843222,1707749469484,-500.0,0.00025887,2]
[313843223,1707749469494,-900.15,0.00025887,2]
[313843224,1707749469505,-500.0,0.00025887,2]
[313843225,1707749469516,-500.0,0.00025887,2]
[313843226,1707749469529,-1461.09,0.00025887,2]
[313843227,1707749469540,-587.81,0.00025887,2]
[313843228,1707749469550,-378.1,0.00025887,2]
[313843229,1707749469561,-500.0,0.00025931,2]
[313843230,1707749469571,-584.29915464,0.00025931,2]
[313843231,1707749469581,-500.0,0.00025931,2]
[313843232,1707749469591,-7766.59,0.00025931,2]
[313843233,1707749469601,-3859.6,0.00025931,2]
[313843234,1707749469611,-3196.37,0.00025931,2]
[313843235,1707749469621,-555.97,0.00025931,2]
[313843236,1707749469633,-500.0,0.00025931,2]
[313843237,1707749469643,-500.0,0.00025931,2]
[313843238,1707749469658,-2487.26,0.00025931,2]
[313843239,1707749469668,-710.62,0.00025931,2]
[313843240,1707749469683,-1220.17,0.00025931,2]
[313843241,1707749469694,-500.0,0.00025931,2]
[313843242,1707749469718,-500.0,0.00025931,2]
[313843243,1707749469745,-698.32,0.00025931,2]
[313843244,1707749469763,-855.42,0.00025931,2]
[313843245,1707749469780,-695.43,0.00025931,2]
[313843246,1707749469814,-1944.8,0.00025931,2]
[313843247,1707749469826,-1365.41,0.00025931,2]
[313843248,1707749469838,-5273.64,0.00025931,2]
[313843249,1707749470076,-1034.4,0.00025931,2]
[313843250,1707749470087,-2858.6,0.00025931,2]
[313843251,1707749470098,-1468.93,0.00025931,2]
[313843252,1707749470108,-881.17,0.00025931,2]
[313843253,1707749470118,-500.0,0.00025931,2]
[313843254,1707749470128,-1639.87,0.00025931,2]
[313843255,1707749470139,-500.0,0.00025931,2]
[313843256,1707749470149,-1006.08,0.00025931,2]
[313843257,1707749470160,-659.03,0.00025931,2]
[313843258,1707749470172,-731.5,0.00025931,2]
[313843259,1707749470183,-875.47,0.00025931,2]
[313843260,1707749470194,-2026.22,0.00025931,2]
[313843261,1707749470204,-2501.35,0.00025931,2]
[313843262,1707749470214,-500.0,0.00025931,2]
[313843263,1707749470225,-500.0,0.00025931,2]
[313843264,1707749470236,-3714.48,0.00025931,2]
[313843265,1707749470247,-150.0,0.00025931,2]
[313843266,1707749470257,-150.0,0.00025931,2]
[313843267,1707749470267,-1998.1,0.00025931,2]
[313843268,1707749470278,-500.0,0.00025931,2]
[313843269,1707749470290,-1114.23,0.00025931,2]
[313843270,1707749470311,-500.0,0.00025931,2]
[313843271,1707749470331,-500.0,0.00025931,2]
[313843272,1707749470354,-500.0,0.00025931,2]
[313843273,1707749470370,-500.0,0.00025932,2]
[313843274,1707749470380,-1070.93,0.00025932,2]
[313843275,1707749470394,-1391.19,0.00025932,2]
[313843276,1707749470430,-1079.7,0.00025932,2]
[313843277,1707749470452,-500.0,0.00025932,2]
[313843278,1707749470470,-1574.12,0.00025932,2]
[313843279,1707749470487,-980.03,0.00025932,2]
[313843280,1707749470501,-2683.79,0.00025932,2]
[313843281,1707749470522,-500.0,0.00025932,2]
[313843282,1707749470553,-639.17,0.00025932,2]
[313843283,1707749470568,-659.69,0.00025932,2]
[313843284,1707749470577,-612.09,0.00025932,2]
[313843285,1707749470605,-500.0,0.00025932,2]
[313843286,1707749470631,-1761.81,0.00025932,2]
[313843287,1707749470643,-940.52,0.00025932,2]
[313843288,1707749470656,-564.5,0.00025932,2]
[313843289,1707749470667,-500.0,0.00025932,2]
[313843290,1707749470685,-500.0,0.00025932,2]
[313843291,1707749470699,-500.0,0.00025932,2]
[313843292,1707749470709,-1622.0,0.00025932,2]
[313843293,1707749470745,-500.0,0.00025932,2]
[313843294,1707749470764,-3437.62,0.00025932,2]
[313843295,1707749470792,-617.57,0.00025932,2]
[313843296,1707749470811,-500.0,0.00025932,2]
[313843297,1707749470822,-761.77,0.00025932,2]
[313843298,1707749470833,-958.99,0.00025932,2]
[313843299,1707749470844,-535.46,0.00025932,2]
[313843300,1707749470854,-500.0,0.00025932,2]
[313843301,1707749470864,-500.0,0.00025932,2]
[313843302,1707749470874,-500.0,0.00025932,2]
[313843303,1707749470885,-156.93345472,0.00025932,2]
[313843304,1707749470896,-500.0,0.00025932,2]
[313843305,1707749470906,-867.34,0.00025932,2]
[313843306,1707749470915,-682.52,0.00025932,2]
[313843307,1707749470926,-500.0,0.00025932,2]
[313843308,1707749470936,-8830.94,0.00025932,2]
[313843309,1707749470947,-838.54,0.00025932,2]
[313843310,1707749470957,-500.0,0.00025932,2]
[313843311,1707749470967,-1383.03,0.00025932,2]
[313843312,1707749470978,-500.0,0.00025932,2]
[313843313,1707749470988,-769.24,0.00025932,2]
[313843314,1707749470998,-500.0,0.00025932,2]
[313843315,1707749471008,-1563.89,0.00025932,2]
[313843316,1707749471018,-3711.11,0.00025932,2]
[313843317,1707749471029,-967.49,0.00025932,2]
[313843318,1707749471040,-500.0,0.00025932,2]
[313843319,1707749471050,-500.0,0.00026,2]
[313843320,1707749471060,-222.69223492,0.00026001,2]
[313843321,1707749471070,-500.0,0.00026034,2]
[313843322,1707749471080,-500.0,0.00026034,2]
[313843323,1707749471088,-500.0,0.00026034,2]
[313843324,1707749471098,-1328.87,0.00026034,2]
[313843325,1707749471107,-500.0,0.00026034,2]
[313843326,1707749471117,-537.67,0.00026034,2]
[313843327,1707749471127,-500.0,0.00026034,2]
[313843328,1707749471137,-517.59,0.00026034,2]
[313843329,1707749471147,-500.0,0.00026034,2]
[313843330,1707749471157,-500.0,0.00026034,2]
[313843331,1707749471167,-500.0,0.00026034,2]
[313843332,1707749471178,-763.45,0.00026034,2]
[313843333,1707749471188,-14989.86070219,0.00026042,2]
[313843334,1707749471197,-11769.17566105,0.00026053,2]
[313843335,1707749471207,-1106.17,0.00026113,2]
[313843336,1707749471216,-500.0,0.00026113,2]
[313843337,1707749471226,-5433.87,0.00026113,2]
[313843338,1707749471236,-686.02,0.00026113,2]
[313843339,1707749471245,-5002.24,0.00026113,2]
[313843340,1707749471255,-1282.89,0.00026113,2]
[313843341,1707749471264,-4545.74,0.00026113,2]
[313843342,1707749471275,-20965.17723413,0.00026145,2]
[313843343,1707749471286,-639.53,0.00026161,2]
[313843344,1707749471296,-920.58,0.00026161,2]
[313843345,1707749471306,-500.0,0.00026161,2]
[313843346,1707749471317,-900.15,0.00026161,2]
[313843347,1707749471327,-500.0,0.00026161,2]
[313843348,1707749471338,-588.26907336,0.00026161,2]
[313843349,1707749471348,-1461.09,0.00026161,2]
[313843350,1707749471358,-587.81,0.00026161,2]
[313843351,1707749471368,-500.0,0.00026205,2]
[313843352,1707749471378,-499.37739579,0.00026205,2]
[313843353,1707749471388,-7766.59,0.00026205,2]
[313843354,1707749471398,-3859.6,0.00026205,2]
[313843355,1707749471408,-3196.37,0.00026205,2]
[313843356,1707749471419,-555.97,0.00026205,2]
[313843357,1707749471429,-500.0,0.00026205,2]
[313843358,1707749471439,-500.0,0.00026205,2]
[313843359,1707749471450,-2487.26,0.00026205,2]
[313843360,1707749471460,-710.62,0.00026205,2]
[313843361,1707749471470,-1220.17,0.00026205,2]
[313843362,1707749471481,-564.01315215,0.00026205,2]
[313843363,1707749471491,-500.0,0.00026205,2]
[313843364,1707749471502,-698.32,0.00026205,2]
[313843365,1707749471512,-855.42,0.00026205,2]
[313843366,1707749471522,-695.43,0.00026205,2]
[313843367,1707749471532,-1944.8,0.00026205,2]
[313843368,1707749471543,-1365.41,0.00026205,2]
[313843369,1707749471553,-5273.64,0.00026205,2]
[313843370,1707749471563,-1034.4,0.00026205,2]
[313843371,1707749471574,-2858.6,0.00026205,2]
[313843372,1707749471584,-1468.93,0.00026205,2]
[313843373,1707749471594,-881.17,0.00026205,2]
[313843374,1707749471604,-500.0,0.00026205,2]
[313843375,1707749471614,-1639.87,0.00026205,2]
[313843376,1707749471625,-500.0,0.00026205,2]
[313843377,1707749471637,-1006.08,0.00026205,2]
[313843378,1707749471648,-659.03,0.00026205,2]
[313843379,1707749471658,-731.5,0.00026205,2]
[313843380,1707749471669,-875.47,0.00026205,2]
[313843381,1707749471681,-2026.22,0.00026205,2]
[313843382,1707749471690,-2501.35,0.00026205,2]
[313843383,1707749471701,-500.0,0.00026205,2]
[313843384,1707749471712,-500.0,0.00026205,2]
[313843385,1707749471724,-3714.48,0.00026205,2]
[313843386,1707749471735,-1998.1,0.00026205,2]
[313843387,1707749471746,-500.0,0.00026205,2]
[313843388,1707749471756,-1114.23,0.00026205,2]
[313843389,1707749471767,-500.0,0.00026205,2]
[313843390,1707749471778,-500.0,0.00026205,2]
[313843391,1707749471788,-500.0,0.00026205,2]
[313843392,1707749471798,-464.65029747,0.00026206,2]
[313843393,1707749471808,-1070.93,0.00026206,2]
[313843394,1707749471818,-1391.19,0.00026206,2]
[313843395,1707749471828,-1079.7,0.00026206,2]
[313843396,1707749471838,-500.0,0.00026206,2]
[313843397,1707749471848,-1574.12,0.00026206,2]
[313843398,1707749471859,-980.03,0.00026206,2]
[313843399,1707749471870,-2683.79,0.00026206,2]
[313843400,1707749471881,-500.0,0.00026206,2]
[313843401,1707749471892,-639.17,0.00026206,2]
[313843402,1707749471903,-659.69,0.00026206,2]
[313843403,1707749471915,-612.09,0.00026206,2]
[313843404,1707749471926,-305.52702938,0.00026206,2]
[313843405,1707749471936,-1761.81,0.00026206,2]
[313843406,1707749471948,-940.52,0.00026206,2]
[313843407,1707749471959,-564.5,0.00026206,2]
[313843408,1707749471970,-500.0,0.00026206,2]
[313843409,1707749471981,-500.0,0.00026206,2]
[313843410,1707749471992,-500.0,0.00026206,2]
[313843411,1707749472002,-1622.0,0.00026206,2]
[313843412,1707749472013,-500.0,0.00026206,2]
[313843413,1707749472024,-3437.62,0.00026206,2]
[313843414,1707749472038,-617.57,0.00026206,2]
[313843415,1707749472048,-761.77,0.00026206,2]
[313843416,1707749472058,-500.0,0.00026206,2]
[313843417,1707749472069,-958.99,0.00026206,2]
[313843418,1707749472079,-535.46,0.00026206,2]
[313843419,1707749472089,-500.0,0.00026206,2]
[313843420,1707749472100,-500.0,0.00026206,2]
[313843421,1707749472111,-500.0,0.00026206,2]
[313843422,1707749472121,-500.0,0.00026206,2]
[313843423,1707749472131,-867.34,0.00026206,2]
[313843424,1707749472141,-682.52,0.00026206,2]
[313843425,1707749472153,-500.0,0.00026206,2]
[313843426,1707749472164,-8830.94,0.00026206,2]
[313843427,1707749472175,-838.54,0.00026206,2]
[313843428,1707749472186,-500.0,0.00026206,2]
[313843429,1707749472197,-1383.03,0.00026206,2]
[313843430,1707749472209,-500.0,0.00026206,2]
[313843431,1707749472219,-769.24,0.00026206,2]
[313843432,1707749472230,-500.0,0.00026206,2]
[313843433,1707749472241,-1563.89,0.00026206,2]
[313843434,1707749472252,-3711.11,0.00026206,2]
[313843435,1707749472263,-967.49,0.00026206,2]
[313843436,1707749472273,-500.0,0.00026206,2]
[313843437,1707749472287,-2246.90643466,0.000263,2]
[313843438,1707749472298,-268.34147273,0.000263,2]
[313843439,1707749472309,-435.43368169,0.000263,2]
[313843440,1707749472319,-325.71352696,0.00026308,2]
[313843441,1707749472330,-165.45491469,0.00026308,2]
[313843442,1707749472340,-500.0,0.00026308,2]
[313843443,1707749472350,-1328.87,0.00026308,2]
[313843444,1707749472361,-197.31334602,0.00026308,2]
[313843445,1707749472371,-537.67,0.00026308,2]
[313843446,1707749472380,-500.0,0.00026308,2]
[313843447,1707749472391,-517.59,0.00026308,2]
[313843448,1707749472401,-500.0,0.00026308,2]
[313843449,1707749472411,-500.0,0.00026308,2]
[313843450,1707749472422,-500.0,0.00026308,2]
[313843451,1707749472432,-763.45,0.00026308,2]
[313843452,1707749472442,-1106.17,0.00026387,2]
[313843453,1707749472452,-500.0,0.00026387,2]
[313843454,1707749472462,-5433.87,0.00026387,2]
[313843455,1707749472471,-686.02,0.00026387,2]
[313843456,1707749472482,-5002.24,0.00026387,2]
[313843457,1707749472492,-1282.89,0.00026387,2]
[313843458,1707749472502,-4545.74,0.00026387,2]
[313843459,1707749472513,-3000.0,0.000264,2]
[313843460,1707749472524,-639.53,0.00026435,2]
[313843461,1707749472539,-920.58,0.00026435,2]
[313843462,1707749472550,-500.0,0.00026435,2]
[313843463,1707749472561,-900.15,0.00026435,2]
[313843464,1707749472571,-500.0,0.00026435,2]
[313843465,1707749472582,-1461.09,0.00026435,2]
[313843466,1707749472592,-587.81,0.00026435,2]
[313843467,1707749472603,-2931.3859576,0.00026465,2]
[313843468,1707749472614,-700.0,0.0002647,2]
[313843469,1707749472624,-500.0,0.00026479,2]
[313843470,1707749472634,-7766.59,0.00026479,2]
[313843471,1707749472644,-3859.6,0.00026479,2]
[313843472,1707749472654,-3196.37,0.00026479,2]
[313843473,1707749472668,-555.97,0.00026479,2]
[313843474,1707749472677,-500.0,0.00026479,2]
[313843475,1707749472687,-500.0,0.00026479,2]
[313843476,1707749472697,-2487.26,0.00026479,2]
[313843477,1707749472707,-710.62,0.00026479,2]
[313843478,1707749472718,-1220.17,0.00026479,2]
[313843479,1707749472727,-500.0,0.00026479,2]
[313843480,1707749472737,-698.32,0.00026479,2]
[313843481,1707749472747,-855.42,0.00026479,2]
[313843482,1707749472758,-695.43,0.00026479,2]
[313843483,1707749472769,-1944.8,0.00026479,2]
[313843484,1707749472782,-1365.41,0.00026479,2]
[313843485,1707749472793,-5273.64,0.00026479,2]
[313843486,1707749472803,-1034.4,0.00026479,2]
[313843487,1707749472814,-2858.6,0.00026479,2]
[313843488,1707749472825,-1468.93,0.00026479,2]
[313843489,1707749472836,-881.17,0.00026479,2]
[313843490,1707749472847,-500.0,0.00026479,2]
[313843491,1707749472857,-1639.87,0.00026479,2]
[313843492,1707749472867,-500.0,0.00026479,2]
[313843493,1707749472877,-1006.08,0.00026479,2]
[313843494,1707749472888,-659.03,0.00026479,2]
[313843495,1707749472898,-731.5,0.00026479,2]
[313843496,1707749472908,-875.47,0.00026479,2]
[313843497,1707749472917,-2501.35,0.00026479,2]
[313843498,1707749472927,-2026.22,0.00026479,2]
[313843499,1707749472937,-416.32477726,0.00026479,2]
[313843500,1707749472948,-500.0,0.00026479,2]
[313843501,1707749472959,-3714.48,0.00026479,2]
[313843502,1707749472969,-1998.1,0.00026479,2]
[313843503,1707749472980,-500.0,0.00026479,2]
[313843504,1707749472991,-1114.23,0.00026479,2]
[313843505,1707749473002,-500.0,0.00026479,2]
[313843506,1707749473012,-500.0,0.00026479,2]
[313843507,1707749473024,-500.0,0.00026479,2]
[313843508,1707749473155,-1070.93,0.0002648,2]
[313843509,1707749473165,-1391.19,0.0002648,2]
[313843510,1707749473175,-1079.7,0.0002648,2]
[313843511,1707749473186,-500.0,0.0002648,2]
[313843512,1707749473197,-1574.12,0.0002648,2]
[313843513,1707749473207,-980.03,0.0002648,2]
[313843514,1707749473218,-2683.79,0.0002648,2]
[313843515,1707749473229,-500.0,0.0002648,2]
[313843516,1707749473240,-639.17,0.0002648,2]
[313843517,1707749473250,-659.69,0.0002648,2]
[313843518,1707749473260,-612.09,0.0002648,2]
[313843519,1707749473271,-1761.81,0.0002648,2]
[313843520,1707749473284,-940.52,0.0002648,2]
[313843521,1707749473294,-564.5,0.0002648,2]
[313843522,1707749473305,-500.0,0.0002648,2]
[313843523,1707749473315,-647.13862987,0.0002648,2]
[313843524,1707749473325,-500.0,0.0002648,2]
[313843525,1707749473336,-1622.0,0.0002648,2]
[313843526,1707749473347,-3437.62,0.0002648,2]
[313843527,1707749473357,-617.57,0.0002648,2]
[313843528,1707749473368,-761.77,0.0002648,2]
[313843529,1707749473378,-500.0,0.0002648,2]
[313843530,1707749473389,-958.99,0.0002648,2]
[313843531,1707749473399,-535.46,0.0002648,2]
[313843532,1707749473410,-500.0,0.0002648,2]
[313843533,1707749473421,-500.0,0.0002648,2]
[313843534,1707749473431,-500.0,0.0002648,2]
[313843535,1707749473442,-500.0,0.0002648,2]
[313843536,1707749473452,-867.34,0.0002648,2]
[313843537,1707749473461,-682.52,0.0002648,2]
[313843538,1707749473472,-500.0,0.0002648,2]
[313843539,1707749473483,-8830.94,0.0002648,2]
[313843540,1707749473494,-838.54,0.0002648,2]
[313843541,1707749473504,-500.0,0.0002648,2]
[313843542,1707749473515,-1383.03,0.0002648,2]
[313843543,1707749473526,-500.0,0.0002648,2]
[313843544,1707749473537,-769.24,0.0002648,2]
[313843545,1707749473548,-500.0,0.0002648,2]
[313843546,1707749473559,-1563.89,0.0002648,2]
[313843547,1707749473570,-3711.11,0.0002648,2]
[313843548,1707749473581,-967.49,0.0002648,2]
[313843549,1707749473591,-500.0,0.0002648,2]
[313843550,1707749473601,-173.15,0.00026519,2]
[313843551,1707749473610,-500.0,0.00026582,2]
[313843552,1707749473620,-1328.87,0.00026582,2]
[313843553,1707749473630,-537.67,0.00026582,2]
[313843554,1707749473640,-500.0,0.00026582,2]
[313843555,1707749473651,-517.59,0.00026582,2]
[313843556,1707749473663,-538.29629476,0.00026582,2]
[313843557,1707749473674,-364.70684263,0.00026582,2]
[313843558,1707749473685,-500.0,0.00026582,2]
[313843559,1707749473696,-763.45,0.00026582,2]
[313843560,1707749473706,-1106.17,0.00026661,2]
[313843561,1707749473716,-500.0,0.00026661,2]
[313843562,1707749473726,-5433.87,0.00026661,2]
[313843563,1707749473736,-686.02,0.00026661,2]
[313843564,1707749473748,-5002.24,0.00026661,2]
[313843565,1707749473758,-1282.89,0.00026661,2]
[313843566,1707749473768,-4545.74,0.00026661,2]
[313843567,1707749473779,-156.4172278,0.00026687,3]
[313843568,1707749473789,-639.53,0.00026709,2]
[313843569,1707749473800,-920.58,0.00026709,2]
[313843570,1707749473809,-377.45633019,0.00026709,2]
[313843571,1707749473819,-900.15,0.00026709,2]
[313843572,1707749473830,-500.0,0.00026709,2]
[313843573,1707749473841,-1461.09,0.00026709,2]
[313843574,1707749473852,-587.81,0.00026709,2]
[313843575,1707749473863,-154.11,0.00026728,2]
[313843576,1707749473873,-500.0,0.00026753,2]
[313843577,1707749473883,-7766.59,0.00026753,2]
[313843578,1707749473893,-3859.6,0.00026753,2]
[313843579,1707749473903,-3196.37,0.00026753,2]
[313843580,1707749473913,-555.97,0.00026753,2]
[313843581,1707749473923,-500.0,0.00026753,2]
[313843582,1707749473933,-500.0,0.00026753,2]
[313843583,1707749473943,-2487.26,0.00026753,2]
[313843584,1707749473954,-710.62,0.00026753,2]
[313843585,1707749473965,-1220.17,0.00026753,2]
[313843586,1707749473975,-500.0,0.00026753,2]
[313843587,1707749473985,-698.32,0.00026753,2]
[313843588,1707749473995,-855.42,0.00026753,2]
[313843589,1707749474006,-695.43,0.00026753,2]
[313843590,1707749474016,-1944.8,0.00026753,2]
[313843591,1707749474027,-1365.41,0.00026753,2]
[313843592,1707749474037,-5273.64,0.00026753,2]
[313843593,1707749474048,-1034.4,0.00026753,2]
[313843594,1707749474058,-2858.6,0.00026753,2]
[313843595,1707749474068,-1468.93,0.00026753,2]
[313843596,1707749474079,-881.17,0.00026753,2]
[313843597,1707749474088,-500.0,0.00026753,2]
[313843598,1707749474099,-1639.87,0.00026753,2]
[313843599,1707749474109,-500.0,0.00026753,2]
[313843600,1707749474120,-1006.08,0.00026753,2]
[313843601,1707749474130,-659.03,0.00026753,2]